bitfinex-derivatives/quotes_SOLF0:USTF0_20250731
["timestamp","ask_amount","ask_price","bid_price","bid_amount"]
[1753963273101,3.16,180.73,180.72,3.28]
[1753963273493,8.6937,180.74,180.72,3.28]
[1753963274000,5.5334,180.75,180.72,3.28]
[1753963274199,8.6934,180.75,180.72,3.28]
[1753963274494,3.16,180.75,180.72,3.28]
[1753963274798,3.16,180.74,180.72,3.28]
[1753963275394,8.6937,180.74,180.72,3.28]
[1753963277796,5.5339,180.73,180.72,3.28]
[1753963278202,8.5139,180.73,180.72,3.28]
[1753963280505,2.98,180.73,180.72,3.28]
[1753963280702,2.98,180.75,180.72,3.28]
[1753963281005,5.5337,180.74,180.72,3.28]
[1753963281207,8.5137,180.74,180.72,3.28]
[1753963281408,8.5134,180.75,180.72,3.28]
[1753963282906,5.5337,180.74,180.72,3.28]
[1753963283208,2.98,180.78,180.73,3.05]
[1753963283505,2.98,180.76,180.73,3.05]
[1753963283706,7.00663435,180.75,180.73,3.05]
[1753963283907,2.98,180.75,180.73,3.05]
[1753963284908,5.5325,180.78,180.73,3.05]
[1753963285106,7.00700165,180.77,180.73,3.05]
[1753963285306,4.02700165,180.76,180.73,3.05]
[1753963285506,7.00700165,180.76,180.73,3.05]
[1753963285707,4.02700165,180.75,180.73,3.05]
[1753963288513,4.02700165,180.75,180.74,3.05]
[1753963288915,8.5127,180.77,180.74,3.05]
[1753963289214,4.02808027,180.76,180.74,3.05]
[1753963289410,5.5327,180.77,180.74,3.05]
[1753963289616,7.00832681,180.76,180.74,3.05]
[1753963289810,2.98,180.76,180.74,3.05]
[1753963290010,2.98,180.76,180.75,3.05]
[1753963290213,7.00809495,180.76,180.75,3.05]
[1753963293015,7.00809495,180.76,180.75,4.99005827]
[1753963293214,7.00768554,180.76,180.75,4.99005827]
[1753963294519,12.54068554,180.76,180.75,4.99005827]
[1753963294712,9.56068554,180.76,180.75,4.99005827]
[1753963294916,2.98,180.75,180.74,4.99005827]
[1753963295117,7.00768554,180.75,180.74,4.99005827]
[1753963299415,12.54098554,180.75,180.74,4.99005827]
[1753963300023,9.56098554,180.75,180.74,4.99005827]
[1753963301318,4.02768554,180.75,180.74,4.99005827]
[1753963302318,9.56098554,180.75,180.74,4.99005827]
[1753963303121,2.98,180.79,180.75,3.05]
[1753963303314,2.98,180.79,180.78,1.94005827]
[1753963303621,8.5121,180.79,180.78,4.99005827]
[1753963303823,12.54039131,180.79,180.78,4.99005827]
[1753963304018,4.02829131,180.79,180.78,4.99005827]
[1753963304224,4.63721002,180.86,180.79,3.05]
[1753963304724,4.02920178,180.85,180.79,3.05]
[1753963305022,2.98,180.86,180.79,3.05]
[1753963305322,6.15592551,180.92,180.79,3.05]
[1753963305323,3.03,180.88,180.79,3.05]
[1753963305524,4.02264086,180.87,180.79,3.05]
[1753963305719,8.5596,180.88,180.87,3.26]
[1753963306022,12.58086834,180.88,180.87,3.26]
[1753963306222,3.03,180.87,180.86,1.94005827]
[1753963306412,7.05126834,180.87,180.86,1.94005827]
[1753963306915,8.5599,180.86,180.85,3.26]
[1753963307114,3.03,180.85,180.84,3.02771034]
[1753963307421,8.5602,180.85,180.84,6.28771034]
[1753963309923,5.5302,180.85,180.84,6.28771034]
[1753963310320,7.66492036,180.91,180.84,6.28771034]
[1753963310623,3.03,180.89,180.85,3.26]
[1753963310818,4.00919673,180.88,180.85,3.26]
[1753963311025,12.56909673,180.87,180.85,3.26]
[1753963311220,8.5599,180.87,180.85,3.26]
[1753963311421,3.03,180.87,180.85,3.26]
[1753963311920,5.5299,180.86,180.85,3.26]
[1753963312119,3.03,180.91,180.85,3.26]
[1753963312324,3.03,180.89,180.87,3.26]
[1753963312818,3.03,180.93,180.87,3.26]
[1753963313013,3.03,180.91,180.87,3.26]
[1753963313219,3.03,180.89,180.87,3.26]
[1753963313419,3.03,180.94,180.87,3.26]
[1753963313621,3.03,180.92,180.87,3.26]
[1753963313824,7.03553316,180.91,180.87,3.26]
[1753963314025,3.03,180.91,180.87,3.26]
[1753963314621,3.03,180.91,180.89,3.26]
[1753963315116,3.03,180.92,180.89,3.26]
[1753963315322,5.5286,180.91,180.89,3.26]
[1753963315619,5.5286,180.91,180.9,6.28771034]
[1753963318228,5.5282,180.92,180.9,3.02771034]
[1753963318428,8.5582,180.92,180.91,3.26]
[1753963318927,3.03,180.91,180.88,3.26]
[1753963319131,3.03,180.91,180.89,3.26]
[1753963319327,5.5294,180.88,180.83,5.5308]
[1753963319525,5.5294,180.88,180.87,3.02771034]
[1753963319831,3.03,180.89,180.88,3.26]
[1753963320326,5.5289,180.9,180.88,3.26]
[1753963320723,3.03,180.9,180.88,3.26]
[1753963320929,5.529,180.89,180.88,3.26]
[1753963321532,8.559,180.89,180.88,3.26]
[1753963322028,5.5299,180.86,180.85,3.02771034]
[1753963322334,3.03,180.86,180.83,3.02771034]
[1753963322537,3.03,180.9,180.85,3.02771034]
[1753963322734,3.03,180.89,180.86,3.26]
[1753963323632,5.5296,180.87,180.86,3.26]
[1753963324333,8.5596,180.87,180.86,3.26]
[1753963325239,5.5296,180.87,180.86,3.26]
[1753963325737,3.03,180.89,180.86,3.26]
[1753963325936,3.03,180.93,180.87,3.26]
[1753963326123,3.03,180.93,180.81,3.02771034]
[1753963326124,21.21661002,180.98,180.88,3.02771034]
[1753963326328,3.03,180.94,180.91,3.26]
[1753963326525,3.03,180.94,180.92,3.26]
[1753963326931,5.5278,180.93,180.92,3.26]
[1753963328240,8.5578,180.93,180.92,3.26]
[1753963328838,5.5284,180.91,180.9,6.28771034]
[1753963329039,3.03,180.93,180.9,6.28771034]
[1753963329337,3.03,180.92,180.91,3.26]
[1753963329828,5.528,180.93,180.91,3.26]
[1753963330034,8.558,180.93,180.91,3.26]
[1753963330733,8.558,180.93,180.9,3.02771034]
[1753963330934,8.558,180.93,180.92,3.26]
[1753963331539,3.03,180.97,180.92,3.26]
[1753963331739,7.01464843,180.96,180.92,3.26]
[1753963331941,3.03,180.95,180.92,3.26]
[1753963332137,8.5574,180.95,180.92,3.26]
[1753963332436,3.02771034,180.99,180.92,3.26]
[1753963332637,3.03,180.94,180.92,6.28771034]
[1753963333136,8.5575,180.94,180.93,3.26]
[1753963334137,5.5275,180.94,180.93,3.26]
[1753963334538,8.5575,180.94,180.93,3.26]
[1753963335442,5.5275,180.94,180.93,3.26]
[1753963336036,5.5275,180.94,180.93,6.28771034]
[1753963336236,5.5275,180.94,180.93,5.98771034]
[1753963339541,5.5273,180.95,180.93,3.02771034]
[1753963339749,3.07,180.97,180.9,3.02771034]
[1753963339949,105.57721002,181.01,180.95,2.96]
[1753963340246,5.5272,180.95,180.94,3.02771034]
[1753963340447,5.5272,180.95,180.94,5.98771034]
[1753963341047,8.5972,180.95,180.94,5.98771034]
[1753963341245,5.5278,180.93,180.92,5.98771034]
[1753963341437,8.5978,180.93,180.92,5.98771034]
[1753963341642,3.07,180.94,180.88,2.96]
[1753963341841,8.599,180.89,180.88,2.96]
[1753963343149,5.5298,180.87,180.86,2.96]
[1753963345647,3.07,180.87,180.79,139.33248811]
[1753963345849,3.07,180.86,180.8,2.96]
[1753963346050,3.07,180.86,180.69,9.29707358]
[1753963346051,3.07,180.84,180.77,2.96]
[1753963346252,8.6023,180.79,180.78,2.96]
[1753963346449,3.07,180.79,180.75,2.96]
[1753963346648,6.09771034,180.79,180.75,2.96]
[1753963346944,8.603,180.76,180.75,2.96]
[1753963347345,5.5336,180.74,180.7,3.02771034]
[1753963347747,3.07,180.75,180.7,3.02771034]
[1753963347945,8.6035,180.75,180.71,2.96]
[1753963348848,3.07,180.75,180.71,2.96]
[1753963349244,8.6031,180.76,180.71,2.96]
[1753963349754,5.5333,180.75,180.73,2.96]
[1753963349952,5.5333,180.75,180.74,2.96]
[1753963350150,8.6033,180.75,180.74,2.96]
[1753963350550,3.07,180.77,180.71,2.96]
[1753963351152,5.5338,180.74,180.69,8.56261034]
[1753963351352,3.07,180.75,180.72,2.96]
[1753963351553,3.07,180.74,180.73,2.96]
[1753963353356,3.07,180.79,180.73,2.96]
[1753963353752,3.07,180.75,180.73,2.96]
[1753963353952,3.07,180.75,180.74,2.96]
[1753963354457,8.6033,180.75,180.74,2.96]
[1753963354956,3.07,180.75,180.74,2.96]
[1753963355358,5.5331,180.76,180.74,2.96]
[1753963355749,5.5331,180.76,180.75,2.96]
[1753963355750,8.6031,180.76,180.75,2.96]
[1753963360465,8.6036,180.75,180.71,2.96]
[1753963361158,8.6039,180.73,180.71,2.96]
[1753963361562,8.6039,180.73,180.7,3.02771034]
[1753963361958,8.6039,180.73,180.72,2.96]
[1753963363664,5.5339,180.73,180.72,2.96]
[1753963364166,8.6039,180.73,180.72,2.96]
[1753963364655,5.5346,180.71,180.7,2.96]
[1753963365064,3.07,180.72,180.7,2.96]
[1753963365266,8.6043,180.72,180.7,2.96]
[1753963365464,3.07,180.72,180.7,2.96]
[1753963367267,8.6044,180.72,180.7,2.96]
[1753963367661,3.06,180.76,180.7,2.96]
[1753963367858,5.5341,180.73,180.7,2.96]
[1753963368560,8.5941,180.73,180.7,2.96]
[1753963369066,5.5343,180.72,180.7,2.96]
[1753963372572,5.5345,180.71,180.7,2.96]
[1753963372775,3.06,180.73,180.7,2.96]
[1753963372970,3.02771034,180.77,180.69,3.02771034]
[1753963373171,5.5344,180.72,180.7,3.16]
[1753963374174,8.5944,180.72,180.7,3.16]
[1753963374669,5.5346,180.71,180.69,3.02771034]
[1753963374875,5.5346,180.71,180.7,3.16]
[1753963375373,8.5943,180.72,180.7,3.16]
[1753963376674,5.5345,180.71,180.7,3.16]
[1753963377279,8.5945,180.71,180.7,3.16]
[1753963378574,5.5345,180.71,180.7,3.16]
[1753963379671,3.02771034,180.72,180.67,3.16]
[1753963379876,3.06,180.71,180.65,3.02771034]
[1753963380077,3.06,180.71,180.68,3.16]
[1753963380278,3.06,180.69,180.66,3.16]
[1753963380777,5.5358,180.67,180.64,3.16]
[1753963381277,8.5958,180.67,180.64,3.16]
[1753963382075,11.0679,180.73,180.63,3.02771034]
[1753963382284,3.06,180.67,180.65,3.16]
[1753963382476,3.06,180.69,180.64,3.16]
[1753963382681,5.5369,180.64,180.62,3.16]
[1753963382880,3.06,180.64,180.62,3.16]
[1753963383481,8.5968,180.64,180.62,3.16]
[1753963385379,5.5368,180.64,180.62,3.16]
[1753963386486,3.06,180.66,180.59,3.02771034]
[1753963386687,3.06,180.66,180.6,3.16]
[1753963386987,5.5375,180.62,180.6,3.16]
[1753963387287,3.06,180.62,180.6,3.16]
[1753963387685,8.5976,180.61,180.6,3.16]
[1753963388988,5.5374,180.62,180.6,3.16]
[1753963389185,8.5974,180.62,180.6,3.16]
[1753963389385,3.06,180.62,180.6,3.16]
[1753963389984,3.06,180.66,180.6,3.16]
[1753963390183,3.06,180.66,180.58,104.00771034]
[1753963390184,3.06,180.66,180.63,3.16]
[1753963390388,3.99892478,180.65,180.63,3.16]
[1753963390587,8.5963,180.66,180.63,3.16]
[1753963390784,5.5363,180.66,180.64,3.02771034]
[1753963390986,3.06,180.69,180.64,3.02771034]
[1753963391186,4.00023125,180.68,180.64,3.02771034]
[1753963391495,7.06023125,180.67,180.65,3.16]
[1753963391682,4.00023125,180.66,180.64,3.02771034]
[1753963392081,4.00023125,180.66,180.64,3.16]
[1753963392082,3.06,180.65,180.64,3.16]
[1753963392289,3.06,180.65,180.63,3.16]
[1753963392797,4.00057865,180.64,180.61,3.16]
[1753963392990,3.06,180.68,180.61,3.16]
[1753963393190,3.06,180.66,180.6,6.18771034]
[1753963393490,7.06057835,180.65,180.62,3.02771034]
[1753963393697,8.5959,180.67,180.64,3.02771034]
[1753963393990,4.00027733,180.66,180.65,3.16]
[1753963394193,3.06,180.67,180.65,3.16]
[1753963394488,4.5915337,180.71,180.66,3.16]
[1753963394692,3.06,180.68,180.66,3.16]
[1753963394897,4.00010078,180.67,180.66,3.16]
[1753963395288,4.5915337,180.72,180.67,2.96]
[1753963395491,9.53684519,180.71,180.69,2.96]
[1753963395788,5.5346,180.71,180.69,2.96]
[1753963396195,8.6946,180.71,180.69,2.96]
[1753963396597,5.5348,180.7,180.69,2.96]
[1753963397392,8.6948,180.7,180.69,2.96]
[1753963398800,5.5346,180.71,180.69,2.96]
[1753963399499,5.5346,180.71,180.7,3.02771034]
[1753963399799,3.16,180.74,180.7,3.02771034]
[1753963399800,3.16,180.74,180.71,2.96]
[1753963400399,7.61924404,180.79,180.71,2.96]
[1753963400400,3.16,180.78,180.71,2.96]
[1753963400695,3.16,180.76,180.72,2.96]
[1753963400902,4.0049468,180.75,180.72,2.96]
[1753963401102,3.16,180.74,180.72,2.96]
[1753963401296,5.5339,180.73,180.72,2.96]
[1753963401501,8.6939,180.73,180.72,2.96]
[1753963402501,5.5345,180.71,180.7,3.02771034]
[1753963402701,8.6945,180.71,180.7,5.98771034]
[1753963403299,8.6945,180.71,180.7,2.96]
[1753963403802,5.5345,180.71,180.7,2.96]
[1753963404106,3.16,180.73,180.71,2.96]
[1753963404312,3.16,180.73,180.7,3.02771034]
[1753963404313,3.16,180.78,180.73,2.96]
[1753963404506,5.5338,180.74,180.73,2.96]
[1753963405908,5.5334,180.75,180.73,2.96]
[1753963406105,3.16,180.76,180.73,2.96]
[1753963406301,4.00992136,180.75,180.73,2.96]
[1753963406506,5.5333,180.75,180.73,2.96]
[1753963406710,3.16,180.79,180.72,2.96]
[1753963406908,5.5336,180.75,180.73,2.96]
[1753963407705,3.16,180.79,180.74,3.02771034]
[1753963407899,4.0105661,180.78,180.75,2.96]
[1753963408104,4.0105661,180.77,180.75,2.96]
[1753963408300,9.5434661,180.77,180.75,2.96]
[1753963408606,4.5915337,180.83,180.76,5.98771034]
[1753963408911,3.16,180.8,180.77,2.96]
[1753963409505,5.5324,180.79,180.77,2.96]
[1753963409710,8.6924,180.79,180.77,5.98771034]
[1753963409909,6.18771034,180.83,180.76,2.96]
[1753963410208,8.6927,180.77,180.76,2.96]
[1753963410709,5.5331,180.76,180.74,2.96]
[1753963410908,3.16,180.8,180.74,2.96]
[1753963411111,3.16,180.78,180.74,2.96]
[1753963411409,7.03789238,180.79,180.74,2.96]
[1753963411410,3.16,180.76,180.74,2.96]
[1753963412003,3.16,180.73,180.65,101.26]
[1753963412209,3.16,180.74,180.68,2.96]
[1753963412601,3.02771034,180.75,180.68,2.96]
[1753963412811,6.18771034,180.73,180.66,2.96]
[1753963413112,3.16,180.7,180.64,2.96]
[1753963413705,5.5357,180.68,180.65,2.96]
[1753963413911,3.16,180.7,180.65,2.96]
[1753963414510,3.02771034,180.72,180.66,2.96]
[1753963414717,3.16,180.72,180.66,2.96]
[1753963414913,5.5347,180.71,180.67,5.5356]
[1753963415113,5.5347,180.71,180.68,2.96]
[1753963416019,5.5347,180.71,180.7,2.96]
[1753963416217,5.5343,180.72,180.7,2.96]
[1753963416617,3.16,180.73,180.7,2.96]
[1753963416820,5.535,180.7,180.68,3.02771034]
[1753963417217,8.695,180.7,180.68,3.02771034]
[1753963417418,5.5347,180.71,180.69,2.96]
[1753963418019,5.5348,180.7,180.69,2.96]
[1753963419420,5.5346,180.71,180.69,2.96]
[1753963419721,3.16,180.73,180.69,2.96]
[1753963419923,3.16,180.74,180.71,2.96]
[1753963420123,5.5343,180.72,180.71,2.96]
[1753963421320,5.534,180.73,180.71,2.96]
[1753963421817,5.5338,180.74,180.71,5.5344]
[1753963422025,5.5338,180.74,180.72,2.96]
[1753963422224,3.16,180.78,180.73,2.96]
[1753963422418,3.16,180.76,180.73,2.96]
[1753963422820,3.16,180.75,180.73,2.96]
[1753963423015,8.6933,180.75,180.74,2.96]
[1753963423426,3.16,180.75,180.72,3.02771034]
[1753963423727,3.16,180.75,180.72,5.98771034]
[1753963423926,3.16,180.75,180.73,2.96]
[1753963424122,101.28,180.79,180.72,3.02771034]
[1753963424317,4.0122938,180.78,180.72,5.98771034]
[1753963424521,4.0122938,180.77,180.73,2.96]
[1753963424825,8.6935,180.75,180.73,2.96]
[1753963425025,3.16,180.74,180.73,2.96]
[1753963427327,8.6936,180.74,180.73,2.96]
[1753963427924,3.16,180.74,180.73,2.96]
[1753963429627,5.5334,180.75,180.73,2.96]
[1753963429825,8.5034,180.75,180.73,2.96]
[1753963431630,5.5336,180.74,180.73,2.96]
[1753963433237,2.97,180.77,180.73,2.96]
[1753963433427,2.97,180.77,180.74,3.02771034]
[1753963433622,2.97,180.77,180.75,3.2]
[1753963434135,9.55341265,180.76,180.75,3.2]
[1753963437131,4.02031265,180.76,180.72,3.02771034]
[1753963437332,2.97,180.74,180.73,3.2]
[1753963437732,8.5039,180.74,180.73,3.2]
[1753963438931,5.5334,180.75,180.73,3.2]
[1753963439236,4.027663,180.74,180.73,3.2]
[1753963440137,4.027663,180.74,180.73,8.7339]
[1753963440331,2.97,180.75,180.73,8.7339]
[1753963440531,2.97,180.75,180.74,3.2]
[1753963440734,6.99981258,180.75,180.74,3.2]
[1753963441339,12.53311258,180.75,180.74,3.2]
[1753963443538,2.97,180.73,180.72,6.22771034]
[1753963443740,2.97,180.73,180.72,3.02771034]
[1753963444039,8.5039,180.74,180.72,3.02771034]
[1753963444237,8.5039,180.74,180.73,3.2]
[1753963444439,12.53791118,180.74,180.73,3.2]
[1753963444840,5.5339,180.73,180.72,3.02771034]
[1753963445041,8.5039,180.73,180.72,6.22771034]
[1753963445441,7.00408958,180.73,180.72,6.22771034]
[1753963445740,2.97,180.73,180.72,6.22771034]
[1753963445940,2.97,180.74,180.73,3.2]
[1753963446240,7.00411121,180.74,180.73,3.2]
[1753963447143,4.03411121,180.74,180.73,3.2]
[1753963447742,9.56771121,180.74,180.73,3.2]
[1753963448042,12.53771121,180.74,180.73,3.2]
[1753963455440,4.03411121,180.74,180.73,3.2]
[1753963456650,7.07411121,180.74,180.73,3.2]
[1753963456848,12.60771121,180.74,180.73,3.2]
[1753963464659,7.07411121,180.74,180.7,3.02771034]
[1753963464862,3.04,180.72,180.67,3.03]
[1753963465065,3.04,180.7,180.67,3.03]
[1753963465362,4.03411121,180.69,180.68,3.03]
[1753963465753,8.575,180.7,180.68,3.03]
[1753963465958,4.03411121,180.69,180.68,3.03]
[1753963466154,4.03411121,180.69,180.68,5.5354]
[1753963466356,3.04,180.72,180.68,11.59311034]
[1753963466559,7.08134142,180.71,180.69,3.03]
[1753963466761,4.04134142,180.7,180.69,3.03]
[1753963468965,9.57614142,180.7,180.69,3.03]
[1753963471868,4.04134142,180.7,180.69,8.5651]
[1753963472171,3.04,180.74,180.69,3.03]
[1753963472366,9.56482655,180.73,180.71,3.02771034]
[1753963472575,9.56482655,180.73,180.72,3.03]
[1753963472576,5.5342,180.73,180.72,3.03]
[1753963472867,4.03050862,180.73,180.72,3.03]
[1753963473068,4.03050862,180.73,180.72,8.5642]
[1753963474673,8.5731,180.76,180.74,5.5335]
[1753963474871,3.04,180.76,180.75,3.03]
[1753963475168,4.03069248,180.76,180.75,3.03]
[1753963476160,4.03069248,180.76,180.75,8.5633]
[1753963476571,3.04,180.8,180.75,3.03]
[1753963476766,9.56264019,180.79,180.77,3.02771034]
[1753963477065,4.03054019,180.78,180.77,3.02771034]
[1753963477271,12.60294019,180.78,180.77,3.02771034]
[1753963477566,3.04,180.77,180.72,3.02771034]
[1753963477870,3.04,180.75,180.74,3.03]
[1753963478074,7.07054019,180.75,180.74,3.03]
[1753963479270,12.60404019,180.75,180.74,3.03]
[1753963481064,7.07054019,180.75,180.74,3.03]
[1753963481275,4.03054019,180.75,180.74,3.03]
[1753963481972,4.03054019,180.75,180.74,6.05771034]
[1753963482574,9.56384019,180.75,180.74,6.05771034]
[1753963482872,4.03054019,180.75,180.72,3.02771034]
[1753963483067,4.03054019,180.74,180.72,3.02771034]
[1753963483264,4.03054019,180.73,180.72,3.02771034]
[1753963483576,4.03054019,180.73,180.72,6.05771034]
[1753963486580,9.56444019,180.73,180.72,6.05771034]
[1753963488477,4.03054019,180.73,180.72,6.05771034]
[1753963490570,3.27,180.78,180.73,3.17]
[1753963490875,7.29607661,180.77,180.75,3.17]
[1753963491175,4.02607661,180.76,180.75,3.17]
[1753963491377,7.29607661,180.76,180.75,3.17]
[1753963491569,5.5333,180.75,180.74,3.02771034]
[1753963491774,12.82937661,180.75,180.74,6.19771034]
[1753963493984,7.29607661,180.75,180.74,6.19771034]
[1753963494277,4.02607661,180.75,180.7,3.02771034]
[1753963494484,7.29607661,180.74,180.73,3.17]
[1753963494684,12.82967661,180.74,180.73,3.17]
[1753963495288,7.29607661,180.74,180.73,3.17]
[1753963496189,4.02607661,180.74,180.73,3.17]
[1753963496685,7.29607661,180.74,180.73,3.17]
[1753963497678,12.82967661,180.74,180.73,3.17]
[1753963498486,7.29607661,180.74,180.73,3.17]
[1753963499987,12.82967661,180.74,180.73,3.17]
[1753963500389,4.02607661,180.74,180.7,3.17]
[1753963500592,3.27,180.71,180.7,3.17]
[1753963500784,3.27,180.72,180.7,3.17]
[1753963501085,8.8044,180.72,180.7,3.17]
[1753963501291,3.27,180.72,180.7,3.17]
[1753963501592,5.5347,180.71,180.68,8.56291034]
[1753963501794,8.8047,180.71,180.68,8.56291034]
[1753963502094,3.27,180.69,180.63,5.5367]
[1753963502290,4.0292243,180.68,180.63,5.5367]
[1753963502590,3.27,180.67,180.64,3.17]
[1753963502892,5.5364,180.65,180.64,3.17]
[1753963503093,3.27,180.65,180.64,3.17]
[1753963504592,8.8064,180.65,180.64,3.17]
[1753963504793,3.27,180.65,180.64,3.17]
[1753963505792,3.27,180.65,180.62,3.17]
[1753963505995,3.27,180.65,180.61,5.5375]
[1753963505996,3.27,180.65,180.63,3.17]
[1753963506296,8.8069,180.64,180.63,3.17]
[1753963506596,3.27,180.64,180.63,3.17]
[1753963508396,8.8067,180.64,180.63,3.17]
[1753963509100,3.27,180.62,180.59,8.56581034]
[1753963509300,3.27,180.62,180.61,3.17]
[1753963510999,5.5372,180.63,180.61,3.17]
[1753963511000,3.27,180.63,180.61,3.17]
[1753963512393,8.8071,180.63,180.61,3.17]
[1753963514111,8.8071,180.63,180.62,3.17]
[1753963514914,8.8075,180.62,180.61,3.17]
[1753963516907,3.27,180.62,180.61,3.17]
[1753963517911,8.4871,180.63,180.61,3.17]
[1753963518211,2.95,180.63,180.61,3.17]
[1753963518819,8.4868,180.64,180.61,3.17]
[1753963519321,5.5371,180.63,180.61,3.17]
[1753963519818,5.5373,180.62,180.61,3.17]
[1753963524318,3.02771034,180.67,180.59,3.02771034]
[1753963524523,18.68804404,180.72,180.62,3.14]
[1753963524524,2.95,180.68,180.62,3.14]
[1753963524918,5.5366,180.65,180.62,8.677]
[1753963525118,5.5366,180.65,180.63,3.14]
[1753963525721,5.5367,180.64,180.63,3.14]
[1753963526625,8.4867,180.64,180.63,3.14]
[1753963527226,5.5372,180.63,180.62,3.14]
[1753963528024,8.4872,180.63,180.62,3.14]
[1753963529727,2.95,180.63,180.62,3.14]
[1753963530022,18.71171376,180.72,180.62,3.14]
[1753963530023,2.95,180.66,180.62,3.14]
[1753963530232,5.5362,180.66,180.64,3.14]
[1753963530728,5.5356,180.68,180.65,5.5363]
[1753963530928,5.5356,180.68,180.63,3.02771034]
[1753963530929,2.95,180.73,180.67,3.02771034]
[1753963531127,2.95,180.71,180.68,3.14]
[1753963531326,8.4848,180.71,180.68,3.14]
[1753963531526,2.95,180.71,180.68,3.14]
[1753963531731,2.95,180.73,180.7,3.14]
[1753963531931,5.5342,180.72,180.7,3.14]
[1753963532236,8.4842,180.72,180.69,8.56261034]
[1753963532533,8.4845,180.71,180.7,3.14]
[1753963533132,5.5345,180.71,180.7,3.14]
[1753963533938,8.4844,180.72,180.7,3.14]
[1753963534130,8.4844,180.72,180.71,3.14]
[1753963538337,3.02771034,180.75,180.69,3.14]
[1753963538532,4.02173206,180.74,180.69,3.14]
[1753963538731,2.95,180.72,180.67,8.56341034]
[1753963538932,5.5346,180.71,180.68,3.14]
[1753963539231,2.95,180.7,180.68,3.14]
[1753963539829,5.5343,180.72,180.7,3.14]
[1753963540034,8.4843,180.72,180.7,3.14]
[1753963541738,5.5345,180.71,180.7,3.14]
[1753963543737,5.5345,180.71,180.57,21.33741539]
[1753963543738,2.95,180.7,180.68,3.14]
[1753963543939,2.95,180.72,180.69,3.14]
[1753963544139,4.0230266,180.71,180.69,3.14]
[1753963544339,12.5080266,180.7,180.69,3.14]
[1753963547238,9.5580266,180.7,180.69,3.14]
[1753963547447,3.07,180.72,180.69,3.14]
[1753963548243,5.5346,180.71,180.69,3.14]
[1753963549244,5.5348,180.7,180.69,3.14]
[1753963549640,3.07,180.72,180.69,3.14]
[1753963549838,5.5346,180.71,180.69,3.14]
[1753963550137,8.6046,180.71,180.69,3.14]
[1753963550650,5.5342,180.72,180.69,3.14]
[1753963551439,5.5342,180.72,180.7,3.0]
[1753963552641,4.61520342,180.77,180.72,3.0]
[1753963552836,3.07,180.75,180.72,3.0]
[1753963553044,4.02269342,180.74,180.72,3.0]
[1753963553946,9.55629342,180.74,180.72,3.0]
[1753963554147,3.07,180.75,180.72,3.0]
[1753963554356,4.02227337,180.74,180.72,3.0]
[1753963554538,8.6035,180.75,180.72,3.0]
[1753963554738,4.02191799,180.74,180.72,3.0]
[1753963554938,8.6035,180.75,180.72,3.0]